Cogmind - Beta 15 @@@ ROGUE MODE // 2025.05.30 @ 05:10:26 Player: Zamshi Result: Destroyed by H-61 Shepherd with Heavy Assault Cannon Performance ------------- Evolutions (2) 1000 Regions Visited (3) 600 Robots Destroyed (44) 220 Value Destroyed (1440) 1440 Prototype IDs (0) 0 Alien Tech Used (0) 0 Bonus (0) 0 TOTAL SCORE: 3260 Bonus ------- None Cogmind --------- Core Integrity 0/550 Matter 300/300 Energy 250/250 System Corruption 2% Temperature Cool (9) Movement Core (50) Location -8/Materials Parts ------- > --- POWER (2) -------- (None) > --- PROPULSION (3) --- (None) > --- UTILITY (3) ------ Medium Battery > --- WEAPON (3) ------- (None) > --- INVENTORY (5) ---- Titanium Leg Heat Sink Improved Heat Sink Peak State ------------ > --- POWER ------------ Improved Deuterium Engine Improved Deuterium Engine > --- PROPULSION ------- Aluminum Leg Aluminum Leg Aluminum Leg > --- UTILITY ---------- Heat Sink Small Storage Unit Advanced Weight Redist. System > --- WEAPON ----------- Plasma Cannon Plasma Cannon Plasma Cannon > --- INVENTORY -------- Improved Deuterium Engine Improved Deuterium Engine ECM Suite Field Laser EM Pulse Cannon Particle Cannon Plasma Cannon [Rating: 30] Favorites ----------- Power Improved Deuterium Engine Engine Improved Deuterium Engine Power Core Light Nuclear Core Propulsion Light Treads Treads Light Treads Leg Aluminum Leg Wheel Compact Wheel Utility Small Storage Unit Device Heat Sink Storage Small Storage Unit Processor Visual Processing Unit Protection Light Armor Plating Weapon Plasma Cannon Energy Gun Particle Gun Energy Cannon Plasma Cannon Ballistic Gun Assault Rifle Launcher Shock Bomb Launcher Build | -11 -10 -9 -8 ------- Run | Yrd Mat Mat Mat Slots Evolved 4 | . . 2 2 Power 1 | . . . 1 Propulsion 1 | . . . 1 Utility 1 | . . 1 . Weapon 1 | . . 1 . Parts Attached 57 | 6 6 13 32 Power 10 | 1 1 1 7 Engine 7 | 1 1 1 4 Core 3 | . . . 3 Reactor . | . . . . Propulsion 16 | 2 2 5 7 Treads 6 | 2 . . 4 Leg 8 | . . 5 3 Wheel 2 | . 2 . . Hover . | . . . . Flight . | . . . . Utility 12 | 1 1 3 7 Device 6 | . 1 1 4 Storage 3 | 1 . . 2 Processor 1 | . . 1 . Hackware . | . . . . Protection 2 | . . 1 1 Artifact . | . . . . Weapon 19 | 2 2 4 11 Energy Gun 6 | . 1 3 2 Energy Cannon 9 | . . 1 8 Ballistic Gun 3 | 2 1 . . Ballistic Cannon . | . . . . Launcher 1 | . . . 1 Special Weapon . | . . . . Impact Weapon . | . . . . Slashing Weapon . | . . . . Piercing Weapon . | . . . . Special Melee Weapon . | . . . . Unidentified Prototypes . | . . . . Parts Lost 22 | . 7 . 15 Power 4 | . 1 . 3 Propulsion 7 | . 3 . 4 Utility 4 | . . . 4 Weapon 7 | . 3 . 4 Highest Loss Streak 8 | . 7 . 8 To Critical Strikes . | . . . . Average Backups 5 | 2 5 5 6 Power . | . . 1 1 Propulsion 1 | 2 3 1 . Utility 1 | . . 1 2 Weapon 1 | . 1 . 2 Tool/Special . | . . . . Unused Backups 4 | . . . 4 Power 1 | . . . 1 Propulsion 2 | . . . 2 Utility 1 | . . . 1 Weapon . | . . . . Tool/Special . | . . . . Average Slot Usage (%) 90 | . 93 90 89 Engine 10 | . 13 11 9 Core 2 | . . . 3 Treads 12 | . 25 . 14 Leg 11 | . . 21 9 Device 7 | . 10 5 7 Storage 11 | . 14 9 12 Processor 2 | . . 8 . Protection 5 | . . 8 4 Energy Gun 7 | . 1 18 4 Energy Cannon 13 | . . 7 20 Ballistic Gun 4 | . 25 . . Peak Build Rating 30 | 6 7 14 30 Average Rating 16 | 4 6 11 22 On Entrance 6 | . 6 5 14 Naked Turns . | . . . . Heaviest Build 52 | 11 12 25 52 Greatest Support 60 | 40 40 20 60 Greatest Overweight (x) 15 | . . 1 15 Average Overweight (x) . | . . . . Largest Inventory Capacity 8 | 8 8 8 8 Average Capacity 7 | 6 8 7 8 Most Carried 8 | 5 7 8 8 Average Carried 5 | 2 5 5 6 Final Capacity 8 | 8 8 8 5 Final Carried 6 | 4 3 6 3 Class Distribution -------------------- 45% | Scavenger-Tank 24% | Mutant 12% | Scavenger-Gunner 9% | Gunner 6% | Scavenger-Mutant Dominant Class ---------------- Mutant | -10/Materials Scavenger-Tank | -9/Materials Scavenger-Tank | -8/Materials Resources | -11 -10 -9 -8 ----------- Run | Yrd Mat Mat Mat Matter Collected 976 | 236 100 180 460 Remotely . | . . . . Salvage Created 1850 | . 414 310 1126 Parts 87 | . 23 19 45 Haulers Intercepted 1 | . . . 1 Recyclers Shooed . | . . . . Parts Field Recycled . | . . . . Retrieved Matter . | . . . . Parts Self-Destructed . | . . . . Prevented . | . . . . Kills | -11 -10 -9 -8 ------- Run | Yrd Mat Mat Mat Combat Hostiles Destroyed 31 | . 10 6 15 Guns 12 | . 6 4 2 Cannons 12 | . . 1 11 AOE 4 | . 4 . . Classes Destroyed 9 | . 5 1 3 Worker 3 | . 1 1 1 Hauler 1 | . . . 1 Recycler 2 | . . . 2 Mechanic 1 | . 1 . . Watcher 6 | . 1 2 3 Swarmer 3 | . 3 . . Grunt 22 | . 7 5 10 Sentry 5 | . . 1 4 Hunter 1 | . . . 1 Best Kill Streak 10 | . 10 4 4 Combat Bots Only 8 | . 8 3 3 Max Kills in Single Turn 6 | . 6 1 1 Gunslinging . | . . . . Exploded 4 | . 4 . . Melee . | . . . . Uniques/NPCs Destroyed . | . . . . Combat | -11 -10 -9 -8 -------- Run | Yrd Mat Mat Mat Hostile Shots Fired 275 | . 109 24 142 Missed 60 | . 21 9 30 Hits 215 | . 88 15 112 Projectile 215 | . 88 15 112 Critical Strikes 7 | . . . 7 Damage Taken 3493 | . 942 204 2347 Core 778 | . 190 36 552 Absorbed by Shields . | . . . . Core Remaining (%) 71 | 100 24 91 . Volleys Fired 87 | . 22 18 47 Largest 3 | . 2 3 3 Hottest 240 | . 60 198 240 Shots Fired 220 | . 45 35 140 Gun 97 | . 45 26 26 Cannon 121 | . . 9 112 Launcher 2 | . . . 2 Special . | . . . . Kinetic 41 | . 41 . . Thermal 156 | . 4 35 117 Explosive . | . . . . Electromagnetic 23 | . . . 23 Robot Hit Streak 10 | . 10 3 10 Robot Miss Streak 4 | . 2 3 4 Penetration Max . | . . . . Secondary Targets 4 | . 4 . . Max Gunslinging Chain 1 | . 1 . . Shots Hit Robots 127 | . 34 17 76 Core Hits 67 | . 22 11 34 Critical Kills . | . . . . Critical Parts Destroyed . | . . . . Critical Strikes 4 | . . 2 2 Burn 4 | . . 2 2 Melee Attacks . | . . . . Impact . | . . . . Slashing . | . . . . Piercing . | . . . . Sneak Attacks . | . . . . Combat Hostiles . | . . . . Follow-up Attacks . | . . . . Damage Inflicted 3098 | . 605 298 2195 Guns 829 | . 370 195 264 Cannons 1832 | . . 103 1729 Explosions 425 | . 227 . 198 Melee . | . . . . Ramming 12 | . 8 . 4 Kinetic 348 | . 348 . . Thermal 1992 | . 50 298 1644 Explosive . | . . . . Electromagnetic 746 | . 199 . 547 Impact . | . . . . Slashing . | . . . . Piercing . | . . . . Highest Corruption 2 | . 1 . 2 Average Corruption 1 | . 1 . 1 Corruption Purged . | . . . . Corruption Blocked . | . . . . Effects 8 | . 1 . 7 Message Errors 2 | . . . 2 Matter Fused 1 | . . . 1 Energy Discharges 1 | . . . 1 Data Loss (minor) 1 | . . . 1 Data Loss (major) 1 | . . . 1 Misfires 1 | . 1 . . Alerts 1 | . . . 1 Overload Shots . | . . . . Overflow Damage 39 | . 8 . 31 Projectiles 26 | . . . 26 Explosions 13 | . 8 . 5 Melee . | . . . . Knockbacks . | . . . . Impact . | . . . . Kinetic . | . . . . Secondary . | . . . . Self-Inflicted Damage 118 | . 93 . 25 Shots 5 | . 3 . 2 Rammed 2 | . 1 . 1 Targets Rammed 2 | . 1 . 1 Kicked . | . . . . Crushed . | . . . . Highest Temperature 675 | . 24 415 675 Average Temperature 179 | . 9 139 202 Received Heat Transfer 1242 | . 276 84 882 Effects 42 | . . 4 38 Shutdowns 11 | . . . 11 Energy Bleed 3 | . . . 3 Interference 13 | . . 3 10 Matter Decay 2 | . . . 2 Short Circuit 2 | . . . 2 Damage (minor) 6 | . . 1 5 Damage (major) 4 | . . . 4 Damage (core) 1 | . . . 1 Siege Activations . | . . . . Martial Activations . | . . . . Shielding Activations . | . . . . Robots Disrupted . | . . . . Combat Hostiles . | . . . . Robots Corrupted 1 | . . . 1 Combat Hostiles 1 | . . . 1 Parts Fried 2 | . . . 2 Impact Corruptions . | . . . . Robots Melted 2 | . . 1 1 Combat Hostiles 2 | . . 1 1 Parts Melted 5 | . 1 . 4 Heat Transferred 4255 | . 100 791 3364 Parts Sabotaged . | . . . . Parts Stolen . | . . . . Parts Stripped . | . . . . Power Chain Reactions 5 | . 2 . 3 Alert | -11 -10 -9 -8 ------- Run | Yrd Mat Mat Mat Maximum Alert Level 1 | . 1 . 1 Low Security (%) 93 | 100 94 100 90 Level 1 6 | . 5 . 9 Level 2 . | . . . . Level 3 . | . . . . Level 4 . | . . . . Level 5 . | . . . . High Security . | . . . . Max Security . | . . . . Peak Influence 260 | . 212 147 260 Initial 85 | . . 85 20 Average 86 | . 41 87 106 Influence Increases 1212 | . 322 179 711 Destroy 0b10 Robot/C 620 | . 200 120 300 Destroy 0b10 Robot/NC 65 | . 15 15 35 Destroy Leader 164 | . 42 44 78 Successful Hack 7 | . . . 7 Disable Machine 105 | . 15 . 90 Destroy Structure 56 | . 5 . 51 Partial Spotted 15 | . . . 15 Lose Combat Pursuer 180 | . 45 . 135 Influence Decreases 1029 | . 120 331 578 Entered New Map 147 | . . 117 30 Time Decay 662 | . 50 214 398 Lost Part 220 | . 70 . 150 Squads Dispatched 9 | . 3 2 4 Investigation 5 | . 2 2 1 Extermination . | . . . . Reinforcement 4 | . 1 . 3 Assault . | . . . . Garrison . | . . . . Intercept . | . . . . Searches Triggered . | . . . . Construction Impeded 1 | . . . 1 Haulers Reinforced . | . . . . Active Scanning Responses . | . . . . Cargo Convoy Interrupts . | . . . . Stealth | -11 -10 -9 -8 --------- Run | Yrd Mat Mat Mat Distress Signals 5 | . 2 1 2 Communications Jammed . | . . . . Distress Signals . | . . . . Times Spotted 58 | . 17 7 34 Peak Tracking Total 9 | . 9 3 4 Tactical Retreats 7 | . 1 . 6 Traps | -11 -10 -9 -8 ------- Run | Yrd Mat Mat Mat Traps Triggered 6 | . 2 2 2 Indirectly . | . . . . Trap Hack Attempts . | . . . . Triggered . | . . . . Disarmed . | . . . . Reprogrammed . | . . . . Reused . | . . . . Traps Extracted . | . . . . Installed . | . . . . Triggered . | . . . . Machines | -11 -10 -9 -8 ---------- Run | Yrd Mat Mat Mat Machines Disabled 7 | . 1 . 6 Max in Single Turn 1 | . 1 . 1 Machines Repaired . | . . . . Machines Dismantled . | . . . . Machines Sabotaged . | . . . . Overloaded Fab Kills . | . . . . Hacking | -11 -10 -9 -8 --------- Run | Yrd Mat Mat Mat Machines Accessed 6 | . . 3 3 Terminals 3 | . . 1 2 Fabricators . | . . . . Repair Stations 1 | . . 1 . Recycling Units 1 | . . . 1 Scanalyzers 1 | . . 1 . Garrison Access . | . . . . Total Hacks 10 | . . 5 5 Successful 7 | . . 4 3 Failed 3 | . . 1 2 Catastrophic . | . . . . Database Lockouts . | . . . . Manual . | . . . . Terminals 5 | . . 1 4 Fabricators . | . . . . Repair Stations 1 | . . 1 . Recycling Units 1 | . . . 1 Scanalyzers 3 | . . 3 . Garrison Access . | . . . . Terminal Hacks 3 | . . 1 2 Branch Access Points 1 | . . . 1 Alert Level 2 | . . 1 1 Fabricator Hacks . | . . . . Repair Station Hacks 1 | . . 1 . Scan Component 1 | . . 1 . Recycling Unit Hacks 1 | . . . 1 Report Inventory 1 | . . . 1 Scanalyzer 2 | . . 2 . Insert Component 1 | . . 1 . Analyze 1 | . . 1 . Garrison Access Hacks . | . . . . Unauthorized Hacks . | . . . . Terminals . | . . . . Fabricators . | . . . . Repair Stations . | . . . . Recycling Units . | . . . . Scanalyzers . | . . . . Garrison Access . | . . . . Data Cores Recovered . | . . . . Used . | . . . . Hacking Detections 5 | . . 2 3 Full Trace Events 1 | . . 1 . Feedback Events . | . . . . Feedback Blocked . | . . . . Robot Schematics Acquired . | . . . . Robots Built . | . . . . Authchips . | . . . . Time . | . . . . Total Robot Build Rating . | . . . . Part Schematics Acquired 1 | . . 1 . Parts Built . | . . . . Authchips . | . . . . Time . | . . . . Total Part Build Rating . | . . . . Parts Repaired . | . . . . Time . | . . . . Parts Recycled . | . . . . Recycled Matter . | . . . . Retrieved Matter . | . . . . Retrieved Components . | . . . . Parts Scanalyzed 1 | . . 1 . Part Schematics Acquired 1 | . . 1 . Parts Damaged 1 | . . 1 . Bothacking | -11 -10 -9 -8 ------------ Run | Yrd Mat Mat Mat Used RIF Installer . | . . . . Robots Hacked . | . . . . Non-combat . | . . . . Combat . | . . . . Robot Hacks Applied . | . . . . Relay Couplers Released . | . . . . Fabnet Peak Effective % . | . . . . Robots Rewired . | . . . . Allies Hacked . | . . . . Hacks Repelled . | . . . . Allies | -11 -10 -9 -8 -------- Run | Yrd Mat Mat Mat Total Allies . | . . . . Largest Group . | . . . . Highest-Rated Group . | . . . . Highest-Rated Ally . | . . . . Total Orders . | . . . . Ally Attacks . | . . . . Total Damage . | . . . . Kills . | . . . . Allies Corrupted . | . . . . Allies Melted . | . . . . Intel | -11 -10 -9 -8 ------- Run | Yrd Mat Mat Mat Active Infowar (turns) 695 | . 194 417 84 Optics 389 | . . 305 84 Terrain 275 | . 194 81 . ECM 156 | . . 156 . Robot Analysis Total . | . . . . Derelict Logs Recovered . | . . . . Drone Launches . | . . . . Drone Recoveries . | . . . . Exploration | -11 -10 -9 -8 ------------- Run | Yrd Mat Mat Mat Turns Passed 1732 | 92 253 446 941 Spaces Moved 756 | 58 116 213 369 Core 21 | 14 . . 7 Treads 383 | 44 104 . 235 Legs 337 | . . 210 127 Wheels 15 | . 12 3 . Hover . | . . . . Flight . | . . . . Fastest Speed 50 | 50 100 100 120 Average Speed 163 | 133 153 164 170 Slowest Speed 800 | 160 160 190 800 Overloaded Moves . | . . . . Propulsion Burnouts . | . . . . Robots Hopped . | . . . . Potential Cave-ins . | . . . . Cave-ins Triggered . | . . . . Exploration Rate (%) 21 | 4 26 22 33 Regions Visited 3 Branch Regions . Pre-discovered Areas . | . . . . Known Exits Taken . | . . . . Unknown Exits Taken 3 | 1 1 1 . Scrap Searched . | . . . . Spaces Dug . | . . . . Terrain Destroyed 54 | . 4 . 50 Melee . | . . . . Projectile 33 | . . . 33 AOE 21 | . 4 . 17 Terrain Rammed . | . . . . Walls Destroyed . | . . . . Machines Disabled . | . . . . Actions | -11 -10 -9 -8 --------- Run | Yrd Mat Mat Mat Total 1096 | 73 149 281 593 Wait 70 | . . 13 57 Move 753 | 57 115 212 369 Hop . | . . . . Pick Up 52 | 10 5 11 26 Fast Attach 15 | . . 2 13 Attach 48 | 6 6 12 24 Detach 23 | . . 6 17 Swap 6 | . . 1 5 Drop 40 | . . 6 34 Fire 87 | . 22 18 47 Melee . | . . . . Ram . | . . . . Kick . | . . . . Crush 2 | . 1 . 1 Escape Stasis . | . . . . Rewire . | . . . . Trap . | . . . . Miscellaneous . | . . . . Route ------- -11/Scrapyard -10/Materials -9/Materials -8/Materials (discovered 1 exit: [*Fac]) History --------- Turn | Location | Event 13 | -11/Scrapyard | Discovered new exit (range 14) 93 | -11/Scrapyard | Entered Materials 268 | -10/Materials | Discovered new exit (range 16) 306 | -10/Materials | Build established: Mutant 330 | -10/Materials | Core integrity fell below 50% 346 | -10/Materials | Entered another Materials area 346 | -9/Materials | Evolved 2 slots: Utility x1, Weapon x1 353 | -9/Materials | Destroyed 8 combat bots 376 | -9/Materials | Lost 7 parts (1p3n3w) 675 | -9/Materials | Discovered new exit (range 18) 792 | -9/Materials | Entered another Materials area 792 | -8/Materials | Evolved 2 slots: Power x1, Propulsion x1 842 | -8/Materials | Build established: Scavenger-Tank 1292 | -8/Materials | Lost 3 parts (1p1n1w) 1385 | -8/Materials | Discovered new exit (range 5) 1714 | -8/Materials | Core integrity fell below 50% 1725 | -8/Materials | Core integrity fell below 20% 1733 | -8/Materials | Destroyed by H-61 Shepherd with Heavy Assault Cannon Last Messages --------------- Critical hit (Burn: +37). H3CG6NYZQHE9 G-47 Trooper misfires. ALERT: Suspicious intruders detected, dispatching Specialist reinforcements to area. EM Pulse Cannon destroyed. T-07 Excavator is excavating. EM Pulse Cannon destroyed. T-07 Excavator is excavating. Lgt. Treads destroyed. System corrupted: Component data lost. Lgt. Treads destroyed. Penetrated by Slug. Sml. Storage Unit destroyed. Knocked back. Shock Bomb Launcher destroyed. Knocked back. Penetrated by Slug. Sml. Storage Unit destroyed. Critical hit (Blast). Map ----- +----------------------------------------------------+ | ?????????????????????????# #????????? | | ????????????????########## #????????? | | ????????????????# # #????????? | | ????????????????# """ # ##???????? | | ????????????????# " " # ##???????? | | ????????????????# " # =##???????? | | ????????????????# # =[##???? #?? | | ????????????????# # %#???? #?? | | ????????????????# %/== #### #?? | | ????????????????# "T" # ! #?? | | ????????????????# """ # #?? | | ????????????????########## #?? | | ???????????????? ??????## #########?? | | ???????????????? "???????# #?????????? | | ??????????????? "????####+###???????? | | ??????????????? * "????# #???????? | | ??????????????? ?????# """#???????? | | ??????????????? = ?????# """#???????? | | ??????????????? ?????# """#???????? | | ??????????????? ??????# #???????? | | ??????????????? ??????# ######### | | ?????????????##;##+######+##+## # | | ?????????????# # " | | ?????????????# T + " | | ?????????????# %############### # " | | ?????????????#@ ############??## ##[ " | | ????????????## %## #???# ## " | | ???????###+## [ # #???# ## " | | ???????# H ;% ##### / " | | ???????# ! /g / ## | | ???????### ## # % ############ | | ????????# ?###### #??????????? | | ????????# ???????# !#??????????? | | ????????#????????# #??????????? | | ?????????????????###########??????????? | | ??????????????????????????????????????? | | | | | | | | | | | | | | | | | | | | | | | | | | | | | +----------------------------------------------------+ Best States ------------- Heat Dissipation 45 Energy Generation 27 Energy Capacity 480 Matter Stores 300 Matter Capacity 300 Sight Range 18 Terrain Scan Range 14 Terrain Scan Density 10 ECM Strength 1 Additional Mass Support 9 Armor Coverage 150 Evasion (%) 50 Recoil Reduction 3 Item Schematics ----------------- Beam Rifle | -9/Materials | Scanalyzed Robot Schematics ------------------ None Fabricated ------------ Nothing Repaired ---------- Nothing Alien Tech Used ----------------- None Achievements -------------- None Challenges ------------ None Game ------ Seed ThermalExpertLance Manual? 0 Play Time 00:33:54 Cumulative 5.6 hours Start 2025.05.30 @ 04:36:31 End 2025.05.30 @ 05:10:26 Sessions 1 Manual Loads 0 Difficulty Rogue Special Mode None Game No. 10 Rogue 10 Adventurer 0 Explorer 0 Win Type - Total 0 Types 0/0/0/0/0/0/0/0/0/0 Lore% 6 Gallery% 7 Achievement% 7 Wizard Run 0 Options --------- Layout 1 ASCII 0 Keyboard 0 Movement Mouse Keybinds 0 Fullscreen 1 Font 24/Smallcaps Map View 50x35 Zoom Use 0% Tactical HUD 0 Map Filters NONE Filters NONE Steam 1 RUN: d3e3747e-05d2-4608-9740-8ed333ef9a47